Cogmind - Beta 13 X1 @@@ ROGUE MODE // 2023.08.12 @ 16:46:00 Player: f3-rnm Result: Self-destructed Performance ------------- Evolutions (2) 1000 Regions Visited (4) 800 Robots Destroyed (5) 25 Value Destroyed (110) 110 Prototype IDs (0) 0 Alien Tech Used (0) 0 Bonus (0) 0 TOTAL SCORE: 1935 Bonus ------- None Cogmind --------- Core Integrity 329/550 Matter 221/300 Energy 47/250 System Corruption 0% Temperature Cool (9) Movement Core (200) Ox3 Location -8/Materials Parts ------- > --- POWER (1) -------- Ion Engine > --- PROPULSION (3) --- (None) > --- UTILITY (5) ------ Seismic Detector > --- WEAPON (2) ------- Pulse Rifle Pulse Rifle > --- INVENTORY (5) ---- Deuterium Engine Small Storage Unit Subdweller Optics Peak State ------------ > --- POWER ------------ (None) > --- PROPULSION ------- Subdweller Monowheel > --- UTILITY ---------- Seismic Detector Melee Analysis Suite > --- WEAPON ----------- Pulse Rifle Pulse Rifle > --- INVENTORY -------- Ion Engine Deuterium Engine Small Storage Unit Subdweller Optics [Rating: 12] Favorites ----------- Power Ion Engine Engine Ion Engine Propulsion Aluminum Leg Leg Aluminum Leg Wheel Subdweller Monowheel Utility Small Storage Unit Device Seismic Detector Storage Small Storage Unit Processor Melee Analysis Suite Protection Scrap Shield Weapon Small Laser Energy Gun Small Laser Ballistic Gun Assault Rifle Build | -11 -10 -10 -10 -8 ------- Run | Jun Mat Min Sub Mat Slots Evolved 4 | . . . . 4 Power . | . . . . . Propulsion 1 | . . . . 1 Utility 3 | . . . . 3 Weapon . | . . . . . Parts Attached 14 | 7 . . 1 6 Power 2 | 1 . . . 1 Engine 2 | 1 . . . 1 Core . | . . . . . Reactor . | . . . . . Propulsion 3 | 2 . . . 1 Treads . | . . . . . Leg 2 | 2 . . . . Wheel 1 | . . . . 1 Hover . | . . . . . Flight . | . . . . . Utility 5 | 2 . . 1 2 Device 2 | 1 . . . 1 Storage 1 | 1 . . . . Processor 1 | . . . . 1 Hackware . | . . . . . Protection 1 | . . . 1 . Artifact . | . . . . . Weapon 4 | 2 . . . 2 Energy Gun 3 | 1 . . . 2 Energy Cannon . | . . . . . Ballistic Gun 1 | 1 . . . . Ballistic Cannon . | . . . . . Launcher . | . . . . . Special Weapon . | . . . . . Impact Weapon . | . . . . . Slashing Weapon . | . . . . . Piercing Weapon . | . . . . . Special Melee Weapon . | . . . . . Unidentified Prototypes . | . . . . . Parts Lost 7 | . . . 5 2 Power 1 | . . . 1 . Propulsion 3 | . . . 2 1 Utility 2 | . . . 1 1 Weapon 1 | . . . 1 . Highest Loss Streak 5 | . . . 5 2 To Critical Strikes . | . . . . . Average Slot Usage (%) 81 | . 100 100 65 27 Engine 11 | . 14 14 9 . Leg 22 | . 28 28 20 . Wheel 1 | . . . . 8 Device 9 | . 14 14 . 7 Storage 8 | . 14 14 . . Processor 1 | . . . . 8 Protection 2 | . . . 9 . Energy Gun 12 | . 14 14 13 2 Ballistic Gun 11 | . 14 14 11 . Naked Turns 13 | . . . 5 8 Heaviest Build 26 | 14 14 14 26 12 Greatest Support 20 | 20 20 20 20 20 Greatest Overweight (x) 3 | . . . 1 3 Average Overweight (x) . | . . . . . Largest Inventory Capacity 8 | 8 8 8 8 5 Average Capacity 7 | 7 8 8 5 5 Most Carried 8 | 7 7 8 8 5 Average Carried 6 | 5 6 7 5 3 Final Capacity 8 | 8 8 8 5 5 Final Carried 8 | 6 7 8 5 3 Class Distribution -------------------- 100% | Mutant Dominant Class ---------------- Mutant | -10/Materials Mutant | -10/Mines Mutant | -10/Subcaves Mutant | -8/Materials Resources | -11 -10 -10 -10 -8 ----------- Run | Jun Mat Min Sub Mat Matter Collected 280 | 180 . 20 80 . Remotely . | . . . . . Salvage Created 119 | 46 10 . 63 . Parts 12 | 6 1 . 5 . Haulers Intercepted . | . . . . . Recyclers Shooed . | . . . . . Parts Field Recycled . | . . . . . Retrieved Matter . | . . . . . Parts Self-Destructed 6 | . . . 6 . Prevented . | . . . . . Kills | -11 -10 -10 -10 -8 ------- Run | Jun Mat Min Sub Mat Combat Hostiles Destroyed 2 | . . . 2 . Guns 2 | . . . 2 . Classes Destroyed 3 | 1 1 . 1 . Tunneler 2 | 2 . . . . Operator 1 | . 1 . . . Subdweller 2 | . . . 2 . Best Kill Streak 2 | 2 1 . 2 . Combat Bots Only 2 | . . . 2 . Max Kills in Single Turn 1 | 1 1 . 1 . Gunslinging . | . . . . . Exploded . | . . . . . Melee . | . . . . . Uniques/NPCs Destroyed . | . . . . . Combat | -11 -10 -10 -10 -8 -------- Run | Jun Mat Min Sub Mat Damage Taken 1234 | . . . 817 417 Core 421 | . . . 200 221 Absorbed by Shields . | . . . . . Core Remaining (%) 60 | 100 . . 20 . Volleys Fired 21 | 7 5 . 7 2 Largest 2 | 2 2 . 2 2 Hottest 126 | 60 60 . 60 126 Shots Fired 41 | 14 10 . 13 4 Gun 41 | 14 10 . 13 4 Cannon . | . . . . . Launcher . | . . . . . Special . | . . . . . Kinetic 19 | 7 5 . 7 . Thermal 22 | 7 5 . 6 4 Explosive . | . . . . . Electromagnetic . | . . . . . Robot Hit Streak 16 | 4 3 . 12 16 Robot Miss Streak 3 | 2 3 . . . Penetration Max . | . . . . . Secondary Targets 1 | . . . 1 . Max Gunslinging Chain 1 | . . . 1 . Shots Hit Robots 26 | 7 5 . 10 4 Core Hits 7 | 2 2 . 2 1 Critical Kills . | . . . . . Critical Parts Destroyed . | . . . . . Critical Strikes 1 | . . . . 1 Burn 1 | . . . . 1 Melee Attacks . | . . . . . Impact . | . . . . . Slashing . | . . . . . Piercing . | . . . . . Sneak Attacks . | . . . . . Combat Hostiles . | . . . . . Follow-up Attacks . | . . . . . Damage Inflicted 322 | 92 60 . 102 68 Guns 322 | 92 60 . 102 68 Cannons . | . . . . . Explosions . | . . . . . Melee . | . . . . . Ramming . | . . . . . Kinetic 133 | 49 38 . 46 . Thermal 189 | 43 22 . 56 68 Explosive . | . . . . . Electromagnetic . | . . . . . Impact . | . . . . . Slashing . | . . . . . Piercing . | . . . . . Highest Corruption . | . . . . . Average Corruption . | . . . . . Corruption Purged . | . . . . . Corruption Blocked . | . . . . . Overload Shots . | . . . . . Overflow Damage . | . . . . . Projectiles . | . . . . . Explosions . | . . . . . Melee . | . . . . . Knockbacks . | . . . . . Impact . | . . . . . Kinetic . | . . . . . Secondary . | . . . . . Self-Inflicted Damage . | . . . . . Shots . | . . . . . Rammed 1 | . . . . 1 Targets Rammed 1 | . . . . 1 Kicked . | . . . . . Crushed . | . . . . . Highest Temperature 93 | . . . 10 93 Average Temperature 41 | . . . 10 44 Received Heat Transfer 414 | . . . 261 153 Siege Activations . | . . . . . Robots Corrupted . | . . . . . Combat Hostiles . | . . . . . Parts Fried . | . . . . . Impact Corruptions . | . . . . . Robots Melted . | . . . . . Combat Hostiles . | . . . . . Parts Melted . | . . . . . Heat Transferred 497 | 100 50 . 125 222 Parts Sabotaged . | . . . . . Parts Stolen . | . . . . . Parts Stripped . | . . . . . Power Chain Reactions . | . . . . . Missiles Intercepted . | . . . . . Alert | -11 -10 -10 -10 -8 ------- Run | Jun Mat Min Sub Mat Peak Influence 120 | 10 26 9 . 120 Initial 9 | . 6 9 . 7 Average 11 | 1 14 5 . 52 Maximum Alert Level . | . . . . . Low Security (%) 100 | 100 100 100 . 100 Level 1 . | . . . . . Level 2 . | . . . . . Level 3 . | . . . . . Level 4 . | . . . . . Level 5 . | . . . . . High Security . | . . . . . Max Security . | . . . . . Squads Dispatched 1 | . 1 . . . Investigation . | . . . . . Extermination . | . . . . . Reinforcement 1 | . 1 . . . Assault . | . . . . . Garrison . | . . . . . Intercept . | . . . . . Searches Triggered . | . . . . . Construction Impeded . | . . . . . Haulers Reinforced . | . . . . . Active Scanning Responses . | . . . . . Cargo Convoy Interrupts . | . . . . . Stealth | -11 -10 -10 -10 -8 --------- Run | Jun Mat Min Sub Mat Distress Signals 1 | . . . . 1 Communications Jammed . | . . . . . Distress Signals . | . . . . . Times Spotted 27 | . 2 . 20 5 Peak Tracking Total 9 | . 1 . 9 5 Tactical Retreats 4 | . . . 2 2 Traps | -11 -10 -10 -10 -8 ------- Run | Jun Mat Min Sub Mat Traps Triggered . | . . . . . Indirectly . | . . . . . Trap Hack Attempts . | . . . . . Triggered . | . . . . . Disarmed . | . . . . . Reprogrammed . | . . . . . Reused . | . . . . . Traps Extracted . | . . . . . Installed 1 | . . . . 1 Triggered . | . . . . . Most Traps Carried 2 | . . 2 2 1 Machines | -11 -10 -10 -10 -8 ---------- Run | Jun Mat Min Sub Mat Machines Disabled . | . . . . . Max in Single Turn . | . . . . . Machines Repaired . | . . . . . Machines Sabotaged . | . . . . . Overloaded Fab Kills . | . . . . . Hacking | -11 -10 -10 -10 -8 --------- Run | Jun Mat Min Sub Mat Machines Accessed 2 | . . 1 . 1 Terminals 2 | . . 1 . 1 Fabricators . | . . . . . Repair Stations . | . . . . . Recycling Units . | . . . . . Scanalyzers . | . . . . . Garrison Access . | . . . . . Total Hacks 5 | . . 2 . 3 Successful 2 | . . . . 2 Failed 3 | . . 2 . 1 Catastrophic 3 | . . 2 . 1 Database Lockouts . | . . . . . Manual 5 | . . 2 . 3 Terminals 5 | . . 2 . 3 Fabricators . | . . . . . Repair Stations . | . . . . . Recycling Units . | . . . . . Scanalyzers . | . . . . . Garrison Access . | . . . . . Terminal Hacks 2 | . . . . 2 Branch Access Points 1 | . . . . 1 Emergency Access Points 1 | . . . . 1 Fabricator Hacks . | . . . . . Repair Station Hacks . | . . . . . Recycling Unit Hacks . | . . . . . Scanalyzer . | . . . . . Garrison Access Hacks . | . . . . . Unauthorized Hacks . | . . . . . Terminals . | . . . . . Fabricators . | . . . . . Repair Stations . | . . . . . Recycling Units . | . . . . . Scanalyzers . | . . . . . Garrison Access . | . . . . . Data Cores Recovered . | . . . . . Used . | . . . . . Hacking Detections 1 | . . 1 . . Full Trace Events 1 | . . 1 . . Feedback Events . | . . . . . Feedback Blocked . | . . . . . Robot Schematics Acquired . | . . . . . Robots Built . | . . . . . Authchips . | . . . . . Time . | . . . . . Total Robot Build Rating . | . . . . . Part Schematics Acquired . | . . . . . Parts Built . | . . . . . Authchips . | . . . . . Time . | . . . . . Total Part Build Rating . | . . . . . Parts Repaired . | . . . . . Time . | . . . . . Parts Recycled . | . . . . . Recycled Matter . | . . . . . Retrieved Matter . | . . . . . Retrieved Components . | . . . . . Parts Scanalyzed . | . . . . . Part Schematics Acquired . | . . . . . Parts Damaged . | . . . . . Bothacking | -11 -10 -10 -10 -8 ------------ Run | Jun Mat Min Sub Mat Used RIF Installer . | . . . . . Robots Hacked . | . . . . . Non-combat . | . . . . . Combat . | . . . . . Robot Hacks Applied . | . . . . . Relay Couplers Released . | . . . . . Fabnet Peak Effective % . | . . . . . Robots Rewired . | . . . . . Allies Hacked . | . . . . . Hacks Repelled . | . . . . . Allies | -11 -10 -10 -10 -8 -------- Run | Jun Mat Min Sub Mat Total Allies 1 | . . 1 . . Largest Group 1 | . . 1 1 . Highest-Rated Group 31 | . . 31 31 . Highest-Rated Ally 31 | . . 31 31 . Total Orders . | . . . . . Ally Attacks 6 | . . . 6 . Total Damage 106 | . . . 106 . Kills . | . . . . . Allies Corrupted . | . . . . . Allies Melted 1 | . . . 1 . Intel | -11 -10 -10 -10 -8 ------- Run | Jun Mat Min Sub Mat Robot Analysis Total . | . . . . . Derelict Logs Recovered . | . . . . . Drone Launches . | . . . . . Drone Recoveries . | . . . . . Exploration | -11 -10 -10 -10 -8 ------------- Run | Jun Mat Min Sub Mat Turns Passed 1470 | 280 72 655 302 161 Spaces Moved 1001 | 103 47 479 247 125 Core 157 | 4 . . 136 17 Treads . | . . . . . Legs 736 | 99 47 479 111 . Wheels 108 | . . . . 108 Hover . | . . . . . Flight . | . . . . . Fastest Speed 50 | 50 120 120 50 50 Average Speed 114 | 117 120 120 108 104 Slowest Speed 200 | 120 120 120 190 200 Overloaded Moves . | . . . . . Propulsion Burnouts . | . . . . . Robots Hopped . | . . . . . Cave-ins Triggered . | . . . . . Exploration Rate (%) 30 | 9 15 92 23 15 Regions Visited 4 Branch Regions 2 Pre-discovered Areas . | . . . . . Known Exits Taken . | . . . . . Unknown Exits Taken 4 | 1 1 1 1 . Scrap Searched 1 | . . 1 . . Spaces Dug . | . . . . . Terrain Destroyed . | . . . . . Melee . | . . . . . Projectile . | . . . . . AOE . | . . . . . Terrain Rammed . | . . . . . Walls Destroyed . | . . . . . Machines Disabled . | . . . . . Actions | -11 -10 -10 -10 -8 --------- Run | Jun Mat Min Sub Mat Total 1281 | 248 52 559 271 151 Wait 216 | 119 . 78 8 11 Move 997 | 102 46 478 246 125 Hop . | . . . . . Pick Up 23 | 13 1 2 3 4 Fast Attach 2 | . . . 1 1 Attach 12 | 7 . . . 5 Detach . | . . . . . Swap . | . . . . . Drop 8 | . . 1 6 1 Fire 21 | 7 5 . 7 2 Melee . | . . . . . Ram 1 | . . . . 1 Kick . | . . . . . Crush . | . . . . . Escape Stasis . | . . . . . Rewire . | . . . . . Trap 1 | . . . . 1 Miscellaneous . | . . . . . Route ------- -11/Junkyard -10/Materials -10/Mines (discovered 3 exits: [*Mat x2] / [*Sub]) -10/Subcaves -8/Materials History --------- Turn | Location | Event 26 | -11/Junkyard | Discovered new exit (range 16) 281 | -11/Junkyard | Entered Materials 299 | -10/Materials | Discovered new exit (range 16) 313 | -10/Materials | Build established: Mutant 353 | -10/Materials | Entered Mines 362 | -10/Mines | Discovered new exit (range 7) 419 | -10/Mines | Found a hidden stash of uninstalled traps 717 | -10/Mines | Discovered new exit (range 9) 783 | -10/Mines | Received a Mining Laser from a helpful Derelict 996 | -10/Mines | Discovered new exit (range 11) 1008 | -10/Mines | Entered Subcaves 1008 | -10/Subcaves | Accompanied by 1 ally 1209 | -10/Subcaves | Ambushed by swarm of Subdwellers 1211 | -10/Subcaves | Ambushed by Subdwellers from Twisted Machinery 1211 | -10/Subcaves | Ambushed by Subdwellers from Twisted Machinery 1290 | -10/Subcaves | Lost 5 parts (1p2n1u1w) 1296 | -10/Subcaves | Core integrity fell below 50% 1303 | -10/Subcaves | Discovered new exit (range 13) 1305 | -10/Subcaves | Shifting Twisted Machinery released Sub. Shrapnel Launcher 1306 | -10/Subcaves | Shifting Twisted Machinery released Battle Rifle 1307 | -10/Subcaves | Shifting Twisted Machinery released Scrap Shield 1307 | -10/Subcaves | Shifting Twisted Machinery released Sub. Power Source 1310 | -10/Subcaves | Entered Materials 1310 | -8/Materials | Evolved 4 slots: Propulsion x1, Utility x3 1471 | -8/Materials | Self-destructed Last Messages --------------- 01356_ W-25 Informer sends out distress signal. 01365_ Slammed into W-25 Informer. 01365_ Destabilizing: Core damaged (-27). 01368_ Connecting with Terminal... 01368_ Current location identified: Materials >>Access(Branch) No branch access points found. >>Access(Emergency) Found 1 emergency access door: (44,55) Map updated. 01409_ Acquired Ion Engine. 01423_ Acquired Deuterium Engine. 01446_ Dropped Proton Bomb Trap. 01447_ Installed Proton Bomb Trap. 01455_ Acquired Pulse Rifle. 01463_ Y-45 Defender suffers critical hit (Burn). 01464_ Sub. Monowheel destroyed. 01465_ Melee Analysis Suite destroyed. 01471_ Y-45 Defender heat damages Beam Rifle, Heat Sink. Map ----- +----------------------------------------------------+ | ?????????????????????????????????????????????????? | | ?????????????????????????????????????????????????? | | ?????????????????????????????????????????????????? | | ?????????????????????????????????????????????????? | | ?????????????????????????????????????????????????? | | ?????????????????????????????????????????????????? | | ?????????????????????????????????????????????????? | | ?????????????????????????????????????????????????? | | ?????????????????????????????????????????????????? | | ?????????????????????????????????????????????????? | | ?????????????????????????????????????????????????? | | ?????????????????????????????????????????????????? | | ?????????????????????????????????????????????????? | | ?????????????????????????????????????????????????? | | ?????????????????????????????????????????????????? | | ??????????##############?????????????????????????? | | ####??????# #?????????????????????????? | | ######## " """"" #?????????????????????????? | | + + """"""""" #?????????????????????????? | | ######## """ """ #?????????????????????????? | | #??????# #?????????????????????????? | | #??????######/#######?????????????????????????? | | #??????????# #??????????????????????????????? | | #??????????# #?????###??????????????????????? | | #??????????# ####### #??????????????????????? | | #+##??????????#^ ^## @#??????????????????????? | | # #??????????##^^ ## ! [[[#??????????????????????? | | #??????????# # Y[[ #??????????????????????? | | ############ # [ [#??????????????????????? | | ^YY #??????????????????????? | | #+## ######### # ! #??????????????????????? | | ## #???????# ########??????????????????????? | | T ## #???????#######?????????????????????????????? | | ## #???????????????????????????????????????????? | | ## #???????????????????????????????????????????? | | " ## #???????????????????????????????????????????? | | " ## #???????????????????????????????????????????? | | " ## #???????????????????????????????????????????? | | ## ##??????????????????????????????????????????? | | ### #??????????????????????????????????????????? | | ??# T #??????????????????????????????????????????? | | ??# #??????????????????????????????????????????? | | #### ##??????????????????????????????????????????? | | ## #???????????????????????????????????????????? | | " ## #???????????????????????????????????????????? | | " ## #???????????????????????????????????????????? | | " ## ##########+###??????????????????????????????? | | ## ?????????????????????????? | | ## ?????????????????????????? | | ! ## ?????????????????????????? | +----------------------------------------------------+ Best States ------------- Heat Dissipation 31 Energy Generation 10 Energy Capacity 250 Matter Stores 268 Matter Capacity 300 Sight Range 16 Terrain Scan Density 10 Armor Coverage 800 Evasion (%) 55 Melee Accuracy 5 Item Schematics ----------------- None Robot Schematics ------------------ None Fabricated ------------ Nothing Alien Tech Used ----------------- None Achievements -------------- None Challenges ------------ None Game ------ Seed XenonDeepInjector Manual? 0 Play Time 00:11:14 Cumulative 51.8 hours Start 2023.08.12 @ 16:32:27 End 2023.08.12 @ 16:46:00 Sessions 1 Manual Loads 0 Difficulty Rogue Special Mode None Game No. 37 Rogue 1 Adventurer 36 Explorer 0 Win Type - Total 6 Types 1/0/5/0/0/0/0/0/0 Lore% 36 Gallery% 57 Achievement% 51 Wizard Run 0 Options --------- ASCII 0 Keyboard 0 Movement Mouse Keybinds 0 Fullscreen 1 Font 18/SmallcapsGlow Map View 76x50 Tactical HUD 1 Map Filters NONE Filters NONE Steam 1 RUN: 53bfc2b1-5c6c-4e1c-a767-b3016783a03a